bitfinex-derivatives/quotes_ETHF0:USTF0_20260203
["timestamp","ask_amount","ask_price","bid_price","bid_amount"]
[1770151367626,6.93547999,2305.6,2304.7,0.00808949]
[1770151367826,6.93547999,2305.6,2304.3,2.32316787]
[1770151368027,0.21712,2305.5,2304.3,2.32316787]
[1770151368224,2.59048999,2305.5,2304.3,0.00524886]
[1770151368425,0.21715,2305.2,2304.3,0.00524886]
[1770151369329,4.345,2305.6,2304.3,2.32316787]
[1770151369524,0.00521144,2305.7,2305.0,0.00808949]
[1770151370024,0.00521144,2305.7,2305.2,0.00808949]
[1770151370228,0.00521144,2305.7,2305.1,0.00808949]
[1770151370527,0.00521144,2305.7,2305.2,0.00808949]
[1770151370727,0.00521144,2305.7,2304.8,2.31791901]
[1770151371025,6.67709955,2306.6,2304.8,2.31791901]
[1770151371227,0.21693,2307.5,2305.1,2.2995939]
[1770151371525,4.344,2307.7,2306.2,2.2995939]
[1770151372028,2.33309955,2307.6,2306.2,2.30321782]
[1770151372226,4.34708245,2307.7,2306.2,2.30321782]
[1770151372425,0.21693,2307.5,2306.2,2.30321782]
[1770151372628,0.21695,2307.3,2306.2,2.30321782]
[1770151372825,0.21696,2307.2,2306.2,2.30321782]
[1770151373024,0.2171,2305.7,2303.9,2.2995939]
[1770151373325,32.955,2307.1,2302.6,0.21739]
[1770151373326,2.33309955,2304.7,2302.6,0.21739]
[1770151373521,0.21719,2304.8,2302.3,2.75326555]
[1770151373724,2.33309955,2305.2,2302.3,2.75326555]
[1770151373928,2.33309955,2305.2,2303.3,0.21732]
[1770151373929,2.55347109,2305.2,2303.3,0.21732]
[1770151374229,0.00322154,2305.2,2303.5,0.2173]
[1770151374428,4.343,2306.0,2303.5,2.75326555]
[1770151374626,2.33309955,2305.9,2304.2,0.21724]
[1770151374821,2.33309955,2305.9,2303.5,0.2173]
[1770151375224,2.33309955,2305.9,2303.9,2.43649201]
[1770151375426,2.33309955,2305.9,2304.1,2.43649201]
[1770151375427,2.33714568,2305.9,2304.1,2.43649201]
[1770151375622,2.61118076,2305.5,2304.1,2.43649201]
[1770151375824,2.39810689,2305.9,2304.1,2.43649201]
[1770151376029,2.39406076,2305.6,2304.1,2.43649201]
[1770151376725,2.61117076,2305.6,2304.1,2.43649201]
[1770151377226,2.61119076,2305.4,2303.9,0.00516917]
[1770151377530,2.61119076,2305.4,2303.1,2.43649201]
[1770151377531,2.39406076,2304.6,2303.1,2.43649201]
[1770151377723,0.21724,2304.3,2303.1,2.43649201]
[1770151377923,2.61131076,2304.1,2302.7,2.43649201]
[1770151378128,0.21728,2303.9,2302.7,2.43649201]
[1770151378331,2.61134076,2303.9,2301.9,2.43649201]
[1770151378528,2.61645729,2303.9,2301.9,2.65885958]
[1770151378929,2.61138076,2303.4,2301.9,2.44139958]
[1770151379129,2.39406076,2303.2,2301.9,0.00490757]
[1770151379326,2.61139076,2303.2,2301.9,0.00490757]
[1770151379732,0.21736,2303.0,2301.9,0.00490757]
[1770151380730,2.61142076,2303.0,2301.9,0.00490757]
[1770151380926,0.00511653,2303.9,2302.8,2.43649201]
[1770151381131,2.61129076,2304.3,2302.8,2.43649201]
[1770151381424,4.343,2305.8,2302.2,0.21743]
[1770151381425,2.39406076,2304.2,2302.2,0.21743]
[1770151381627,2.39406076,2303.5,2301.9,2.44139958]
[1770151381829,2.39406076,2303.2,2301.3,2.43649201]
[1770151382032,4.344,2303.9,2301.3,2.43649201]
[1770151382033,2.39406076,2302.8,2301.3,2.43649201]
[1770151382331,0.2173,2303.6,2301.0,2.37659899]
[1770151382627,2.61139076,2303.3,2301.2,2.43649201]
[1770151382827,2.61651579,2303.3,2301.2,2.44110098]
[1770151383029,2.39406076,2302.8,2301.2,0.00460897]
[1770151383233,2.61150076,2302.1,2301.2,0.00460897]
[1770151383432,2.61150076,2302.1,2300.3,2.43649201]
[1770151384436,2.61150076,2302.1,2300.3,2.4419764]
[1770151385330,2.39406076,2301.1,2299.4,2.43649201]
[1770151385529,2.39406076,2300.9,2299.4,2.43649201]
[1770151385731,2.39406076,2300.9,2299.0,2.43649201]
[1770151386129,2.39406076,2301.0,2299.2,2.65420201]
[1770151386433,2.39406076,2301.0,2299.9,2.43649201]
[1770151386434,0.00335277,2301.0,2299.9,2.43649201]
[1770151386635,4.345,2302.3,2299.4,2.43649201]
[1770151386636,2.61156076,2301.5,2299.4,2.43649201]
[1770151387537,2.39406076,2301.3,2299.5,2.43649201]
[1770151387833,2.39406076,2300.9,2299.5,2.43649201]
[1770151388929,2.39406076,2300.9,2299.2,0.00505788]
[1770151389934,2.39406076,2301.4,2299.7,2.43649201]
[1770151390133,2.39406076,2301.2,2299.3,2.43649201]
[1770151390338,2.39886668,2301.5,2299.9,2.43649201]
[1770151390538,2.39886668,2301.5,2299.9,2.65413201]
[1770151391132,6.74106076,2302.0,2301.4,0.21725434]
[1770151391537,2.39406076,2301.9,2300.4,2.43649201]
[1770151392237,2.39721209,2301.9,2300.4,2.44114184]
[1770151392433,2.39406076,2301.7,2300.4,2.44114184]
[1770151392632,0.00315133,2301.9,2300.6,2.43649201]
[1770151393240,0.00315133,2301.9,2300.7,2.65406201]
[1770151394241,0.00315133,2301.9,2300.7,2.43649201]
[1770151395036,0.21748,2301.7,2300.4,0.00464983]
[1770151395242,2.39721209,2301.9,2300.4,2.44114184]
[1770151395933,2.39406076,2301.6,2300.4,2.44114184]
[1770151396242,2.61156076,2301.5,2300.4,0.00464983]
[1770151396931,2.39406076,2301.0,2299.5,2.43649201]
[1770151397138,2.39406076,2300.7,2299.1,2.43649201]
[1770151397734,2.39406076,2300.7,2298.5,2.43649201]
[1770151397939,2.39406076,2300.0,2298.5,2.43649201]
[1770151398138,2.39823875,2300.0,2298.5,2.44153976]
[1770151399142,2.61587875,2300.0,2298.5,2.44153976]
[1770151399343,0.00417799,2300.0,2298.8,2.43649201]
[1770151399943,2.39406076,2300.8,2299.3,2.43649201]
[1770151401141,2.39767407,2300.8,2299.3,2.43649201]
[1770151401441,2.34618065,2300.5,2298.8,2.66465344]
[1770151401743,6.955,2301.9,2298.5,4.35404775]
[1770151401744,0.26746,2301.9,2299.9,2.44690344]
[1770151401946,2.34618065,2301.8,2300.2,2.44690344]
[1770151402143,0.05,2301.9,2300.2,2.44690344]
[1770151402144,2.56367065,2301.6,2300.2,2.44690344]
[1770151402540,2.34618065,2301.6,2300.2,2.44690344]
[1770151402844,2.56367065,2301.6,2300.2,2.44690344]
[1770151403040,2.56367065,2301.6,2300.2,2.45082182]
[1770151403241,2.34927646,2301.6,2300.2,2.45082182]
[1770151403449,2.56368065,2301.4,2300.2,0.00391838]
[1770151403841,2.34618065,2300.6,2299.4,2.44690344]
[1770151404045,2.34618065,2300.6,2299.1,2.66462344]
[1770151404844,2.56377065,2300.5,2299.1,2.44690344]
[1770151405347,2.56380065,2300.3,2299.1,2.45209495]
[1770151406445,2.56375065,2300.7,2299.1,2.45209495]
[1770151406649,4.35,2300.8,2299.3,2.44690344]
[1770151406847,4.35,2300.8,2299.3,2.66460344]
[1770151407146,2.56378065,2300.5,2299.1,0.00519151]
[1770151407948,2.56381065,2300.1,2299.1,0.00519151]
[1770151408541,2.56383065,2299.9,2298.5,2.44690344]
[1770151409245,0.21759,2300.5,2298.8,2.44690344]
[1770151409745,0.00494243,2300.5,2299.3,2.66460344]
[1770151410140,0.00494243,2300.5,2299.5,2.66458344]
[1770151410550,0.00494243,2300.5,2299.5,2.44690344]
[1770151410744,0.00494243,2300.5,2299.0,2.44690344]
[1770151410951,2.56379065,2300.3,2299.0,2.44690344]
[1770151411149,2.35112308,2300.5,2299.0,2.66463344]
[1770151411545,2.56871308,2300.5,2299.0,2.66463344]
[1770151411849,0.22253243,2300.5,2299.0,2.66463344]
[1770151412044,0.00494243,2300.5,2299.2,2.44690344]
[1770151412954,2.56366065,2301.7,2300.0,2.66453344]
[1770151413252,2.56367065,2301.6,2300.0,2.66453344]
[1770151413848,2.56865538,2301.6,2300.0,2.66453344]
[1770151414150,2.34618065,2301.3,2300.0,2.44690344]
[1770151415053,2.34618065,2301.1,2299.6,2.44690344]
[1770151415255,2.34618065,2300.9,2299.6,2.44690344]
[1770151415960,2.34618065,2300.9,2300.3,2.56379065]
[1770151416159,2.34618065,2300.9,2300.3,1.35587277]
[1770151416363,2.56374065,2300.8,2299.2,2.44690344]
[1770151416655,0.00498473,2301.6,2299.9,2.44690344]
[1770151416962,0.00498473,2301.6,2299.9,5.04051447]
[1770151417162,0.00498473,2301.6,2299.9,2.66454344]
[1770151417362,0.00498473,2301.6,2300.0,2.44690344]
[1770151417758,2.34618065,2302.7,2300.9,2.44690344]
[1770151417968,2.34618065,2303.1,2301.6,2.44690344]
[1770151418157,2.34618065,2302.9,2301.1,2.66443344]
[1770151418360,2.34618065,2302.7,2301.1,2.44690344]
[1770151418758,2.56358065,2302.6,2301.1,2.44690344]
[1770151418964,2.56358065,2302.6,2301.1,2.45138237]
[1770151418965,2.56753624,2302.6,2301.1,2.45138237]
[1770151419664,2.34618065,2302.4,2301.1,0.00447893]
[1770151420757,2.34618065,2302.2,2301.1,0.00447893]
[1770151420964,2.34618065,2302.0,2300.3,2.44690344]
[1770151421156,2.34618065,2301.8,2300.3,2.44690344]
[1770151421565,2.34618065,2301.8,2299.9,2.44690344]
[1770151421566,2.34618065,2301.4,2299.9,2.44690344]
[1770151421958,4.35,2302.1,2299.9,2.44690344]
[1770151421959,2.34618065,2301.2,2299.9,0.00467075]
[1770151422262,0.21752,2301.3,2299.9,2.45157419]
[1770151422566,2.34618065,2301.6,2300.1,2.44690344]
[1770151422761,0.21747,2301.8,2300.1,2.44690344]
[1770151423366,2.56365065,2301.8,2300.1,2.44690344]
[1770151424965,0.21747,2301.8,2300.1,2.44690344]
[1770151425766,4.56747,2301.8,2300.1,2.44690344]
[1770151426866,6.91365065,2301.8,2300.1,2.44690344]
[1770151427068,2.34618065,2301.7,2300.1,2.44690344]
[1770151427366,4.56747,2301.8,2300.1,2.44690344]
[1770151427969,6.91365065,2301.8,2300.1,2.44690344]
[1770151428266,2.56366065,2301.7,2300.1,2.44690344]
[1770151429467,2.34618065,2301.6,2300.1,2.44690344]
[1770151429666,2.34618065,2300.7,2299.9,0.00467075]
[1770151429870,2.56378065,2300.4,2299.1,2.44690344]
[1770151430072,4.35,2300.6,2299.1,2.44690344]
[1770151430368,4.35,2300.6,2299.2,2.44690344]
[1770151430369,0.2176,2300.4,2299.2,2.44690344]
[1770151430572,2.25674831,2300.1,2298.5,2.43831939]
[1770151430767,2.25995139,2300.1,2298.5,2.44171704]
[1770151431069,0.00320308,2300.1,2299.1,2.43831939]
[1770151431464,0.00320308,2300.1,2299.5,0.00467075]
[1770151431665,0.00320308,2300.1,2299.4,2.43831939]
[1770151431666,0.00320308,2300.1,2299.4,2.44299014]
[1770151431871,2.25674831,2300.9,2299.6,2.44299014]
[1770151432066,4.35,2300.8,2299.6,2.43831939]
[1770151432467,2.25674831,2300.7,2299.2,2.43831939]
[1770151432670,2.47431831,2300.7,2299.2,2.43831939]
[1770151432863,2.47950337,2300.7,2299.2,2.43831939]
[1770151433067,2.47434831,2300.5,2299.2,2.43831939]
[1770151433772,0.21763,2300.1,2298.7,2.43831939]
[1770151433969,2.25674831,2300.2,2298.7,2.43831939]
[1770151434270,2.25674831,2300.2,2298.8,2.44299014]
[1770151434470,2.25674831,2300.2,2298.9,2.44299014]
[1770151434668,0.00518506,2300.7,2299.3,2.41614454]
[1770151434669,2.40476592,2300.6,2299.3,2.41614454]
[1770151434872,4.35518506,2300.7,2299.3,2.41147379]
[1770151435072,4.35518506,2300.7,2299.1,0.21772]
[1770151435073,4.35518506,2300.7,2299.5,2.41147379]
[1770151435274,2.40476592,2300.6,2298.7,2.41147379]
[1770151435574,2.40476592,2300.4,2298.9,2.62921379]
[1770151435775,0.2176,2300.4,2298.9,2.62921379]
[1770151435976,0.2176,2300.4,2299.1,2.41147379]
[1770151436177,0.2176,2300.4,2299.3,2.41147379]
[1770151436472,0.2176,2300.4,2299.3,2.41614454]
[1770151436677,0.2176,2300.4,2299.5,0.00467075]
[1770151437079,4.35518506,2300.7,2299.7,0.00467075]
[1770151437377,4.35518506,2300.7,2299.7,2.41147379]
[1770151437572,4.35518506,2300.7,2299.8,0.00467075]
[1770151438573,0.00518506,2300.7,2299.8,0.00467075]
[1770151438976,0.00518506,2300.7,2299.2,0.21771]
[1770151439175,0.00518506,2300.7,2299.3,2.41147379]
[1770151439176,0.21759,2300.5,2299.3,2.41147379]
[1770151440477,0.00518506,2300.7,2299.8,2.41147379]
[1770151440672,2.40995098,2300.7,2299.3,2.41147379]
[1770151441072,2.62752098,2300.7,2299.5,2.41147379]
[1770151441577,2.62752098,2300.7,2299.5,2.41614454]
[1770151441778,2.40476592,2300.6,2299.1,2.41147379]
[1770151441978,2.62236592,2300.4,2299.1,2.41147379]
[1770151442271,0.00518506,2300.7,2298.7,2.41147379]
[1770151442272,0.21766,2299.8,2298.7,2.41147379]
[1770151442778,0.21766,2299.8,2298.9,2.41147379]
[1770151442975,2.40476592,2300.5,2299.1,2.41147379]
[1770151443373,2.62234592,2300.6,2299.3,2.41147379]
[1770151444577,2.62234592,2300.6,2299.5,0.00467075]
[1770151444978,2.62234592,2300.6,2299.3,2.41147379]
[1770151445283,2.40476592,2300.3,2298.9,2.41147379]
[1770151445474,2.40476592,2300.1,2298.9,2.41147379]
[1770151445675,2.62240592,2300.0,2298.9,2.41147379]
[1770151446378,2.62242592,2299.8,2298.5,2.41487144]
[1770151446679,2.40476592,2299.1,2298.4,0.16876148]
[1770151446874,2.40476592,2298.9,2297.7,2.41147379]
[1770151447080,4.351,2299.0,2297.7,2.62932379]
[1770151447281,4.351,2299.0,2297.9,2.41614454]
[1770151447580,4.351,2299.0,2297.9,2.41147379]
[1770151447780,2.40476592,2298.9,2297.9,0.00461507]
[1770151448376,0.0052785,2299.0,2298.4,0.00467075]
[1770151448679,4.56968,2299.6,2298.5,0.00467075]
[1770151449180,4.56968,2299.6,2298.4,2.41147379]
[1770151449377,2.40476592,2299.5,2298.0,2.41147379]
[1770151449570,2.40947235,2299.5,2298.1,0.00467075]
[1770151449770,2.40947235,2299.5,2298.2,0.00467075]
[1770151450175,2.40947235,2299.5,2298.3,0.00467075]
[1770151450372,2.40476592,2299.3,2298.0,2.41147379]
[1770151450572,2.40476592,2299.2,2297.9,2.41608886]
[1770151450770,2.40476592,2299.2,2298.1,2.41147379]
[1770151450978,2.40476592,2299.2,2298.1,2.41614454]
[1770151451180,2.40476592,2299.2,2297.9,2.41608886]
[1770151451379,2.40476592,2299.2,2298.0,0.00467075]
[1770151451778,0.21772,2299.1,2298.2,0.00467075]
[1770151451985,0.21772,2299.1,2298.3,2.41147379]
[1770151452180,0.21772,2299.1,2298.3,2.41614454]
[1770151452481,0.21772,2299.1,2298.5,0.00467075]
[1770151452782,2.62248592,2299.1,2297.9,0.00461507]
[1770151453277,2.62250592,2298.9,2297.9,0.00461507]
[1770151453582,6.75776592,2299.0,2298.1,0.00467075]
[1770151453782,2.40476592,2298.9,2297.9,0.00461507]
[1770151454183,2.40476592,2298.9,2297.9,0.00928582]
[1770151454384,2.62251592,2298.9,2297.9,0.00928582]
[1770151454586,2.62255592,2298.4,2297.1,2.41147379]
[1770151455085,2.62255592,2298.4,2297.4,0.00467075]
[1770151455380,0.21779,2298.4,2297.4,2.41614454]
[1770151455584,2.62247592,2299.2,2298.1,0.00467075]
[1770151455775,2.62252592,2298.7,2297.4,0.0035373]
[1770151455975,2.62252592,2298.7,2297.4,2.41501109]
[1770151456180,6.97552592,2298.7,2297.5,0.00467075]
[1770151456484,2.62256592,2298.3,2297.4,0.0035373]
[1770151456780,2.62256592,2298.3,2297.5,0.00467075]
[1770151457184,2.62256592,2298.3,2297.6,0.00467075]
[1770151457385,2.62256592,2298.3,2297.4,0.0035373]
[1770151457684,2.62257592,2298.2,2297.4,0.0035373]
[1770151457884,0.21782,2298.1,2297.4,0.0035373]
[1770151458085,2.62261592,2297.8,2296.6,2.41147379]
[1770151458288,2.40476592,2298.2,2296.6,2.41147379]
[1770151458582,0.2178,2298.3,2296.9,2.41147379]
[1770151458788,4.5718,2298.3,2296.9,2.41147379]
[1770151459186,4.57519583,2298.3,2296.9,2.41480306]
[1770151459892,0.00339583,2298.3,2296.9,2.41480306]
[1770151460087,0.00339583,2298.3,2297.1,2.62938379]
[1770151460285,2.40816175,2298.3,2297.1,2.41147379]
[1770151460991,2.62596175,2298.3,2297.1,2.41147379]
[1770151462092,6.97996175,2298.3,2297.1,2.41147379]
[1770151463191,2.25342156,2298.2,2297.1,2.41147379]
[1770151464090,4.35739583,2298.3,2297.1,2.41147379]
[1770151464488,0.00339583,2298.3,2297.1,2.41147379]
[1770151464687,2.25342156,2299.0,2297.5,2.61541596]
[1770151464884,4.355,2299.2,2297.8,0.21784]
[1770151465185,4.355,2299.2,2297.9,2.39754596]
[1770151465381,2.25342156,2299.1,2297.4,2.39754596]
[1770151465787,2.25697966,2299.1,2297.4,2.39754596]
[1770151466181,0.0035581,2299.1,2297.4,2.61542596]
[1770151466381,0.0035581,2299.1,2297.8,2.39754596]
[1770151466790,0.0035581,2299.1,2298.1,2.61535596]
[1770151467187,0.0035581,2299.1,2298.1,2.39754596]
[1770151467493,6.909,2299.8,2297.9,0.21783]
[1770151467494,4.355,2299.8,2298.8,2.39754596]
[1770151468193,6.60842156,2299.8,2298.2,2.39754596]
[1770151468490,6.6125857,2299.8,2298.2,2.40067782]
[1770151468693,7.00724607,2299.8,2298.2,2.40067782]
[1770151469283,2.25342156,2299.7,2298.2,2.40067782]
[1770151470386,4.57682414,2299.8,2298.2,2.40067782]
[1770151470591,2.25342156,2299.7,2298.2,2.40067782]
[1770151471190,2.25342156,2299.5,2298.2,0.00313186]
[1770151471388,2.25342156,2299.0,2297.5,2.39754596]
[1770151471589,2.25342156,2298.8,2297.5,2.39754596]
[1770151472387,2.25342156,2298.8,2297.5,2.40254026]
[1770151473092,2.47117156,2298.8,2297.5,2.40254026]
[1770151474194,2.25342156,2298.6,2297.5,2.40254026]
[1770151474593,2.25342156,2298.3,2296.7,2.59981679]
[1770151474793,2.25342156,2297.8,2296.3,2.39754596]
[1770151474993,0.21787,2297.6,2296.3,2.39754596]
[1770151475197,6.60742156,2297.5,2296.3,2.39754596]
[1770151475695,6.61241543,2297.5,2296.3,2.40274301]
[1770151476796,2.25342156,2297.4,2296.3,2.40274301]
[1770151477196,2.25342156,2297.4,2296.3,0.00519705]
[1770151477398,2.47131156,2297.4,2296.3,0.00519705]
[1770151477996,2.47131156,2297.4,2296.3,2.40274301]
[1770151478198,5.02531156,2297.4,2296.3,2.40274301]
[1770151478494,0.00499387,2297.5,2295.4,2.61536817]
[1770151478495,2.25342156,2296.8,2295.4,2.61536817]
[1770151479303,2.25342156,2296.8,2295.4,2.62078249]
[1770151479996,2.47138156,2296.6,2295.4,2.62078249]
[1770151480196,0.21797,2296.5,2295.4,2.62078249]
[1770151481293,2.25342156,2296.6,2295.4,2.62078249]
[1770151481498,2.47135156,2297.0,2295.4,2.62078249]
[1770151481996,2.85466188,2297.0,2295.4,2.62078249]
[1770151482190,2.25342156,2296.9,2295.4,2.62078249]
[1770151482793,2.47135156,2296.9,2295.4,2.62078249]
[1770151482994,2.25342156,2296.7,2295.4,2.62078249]
[1770151483199,2.47137156,2296.7,2295.4,2.62078249]
[1770151483501,2.47139156,2296.6,2295.4,2.62078249]
[1770151483700,2.47140156,2296.4,2295.4,0.22323653]
[1770151485602,2.25342156,2296.8,2295.4,2.62078249]
[1770151485905,4.357,2296.7,2295.4,2.62078249]
[1770151486101,2.25342156,2296.6,2295.4,2.62078249]
[1770151486800,4.357,2296.7,2295.4,2.62078249]
[1770151487395,4.357,2296.7,2295.4,2.83885249]
[1770151487906,2.25342156,2296.6,2295.4,2.62078249]
[1770151488995,4.357,2296.7,2295.4,2.62078249]
[1770151489201,2.47138156,2296.6,2295.4,2.62078249]
[1770151489403,2.47140156,2296.4,2295.4,2.62078249]
[1770151489602,2.47140156,2296.4,2295.4,0.22323653]
[1770151489906,4.357,2296.7,2295.4,2.62078249]
[1770151493503,6.68653031,2296.7,2295.4,2.62078249]
[1770151493808,4.357,2296.7,2295.4,2.62078249]
[1770151494106,0.21789,2297.3,2295.7,2.46202323]
[1770151494410,0.21789,2297.3,2295.4,0.22323653]
[1770151494411,2.32953031,2297.0,2295.4,2.90332976]
[1770151494603,2.556,2297.3,2295.6,2.3241275]
[1770151494904,4.92459519,2297.3,2295.8,2.5421575]
[1770151495207,2.36859519,2297.2,2295.8,2.3241275]
[1770151495407,2.58655519,2296.6,2295.4,2.54736403]
[1770151495603,4.355,2297.2,2295.4,2.54736403]
[1770151495604,2.58656519,2296.5,2295.4,2.54736403]
[1770151495905,2.36859519,2296.3,2295.4,2.54736403]
[1770151497802,2.36859519,2296.6,2295.4,2.54736403]
[1770151498002,2.58652519,2296.9,2295.4,2.54736403]
[1770151498199,2.93526522,2297.3,2295.6,2.3241275]
[1770151498200,2.74786041,2297.3,2295.6,2.3241275]
[1770151498408,2.36859519,2297.3,2295.6,2.3241275]
[1770151499309,2.36859519,2297.3,2295.9,2.3241275]
[1770151500307,2.36859519,2297.1,2295.6,2.3241275]
[1770151500506,2.58653519,2296.8,2295.6,2.3241275]
[1770151501399,0.37148401,2297.3,2295.6,2.3241275]
[1770151501400,2.36859519,2297.1,2295.6,2.3241275]
[1770151501604,2.36859519,2297.1,2295.4,0.22323653]
[1770151501605,2.36859519,2297.4,2296.1,2.3241275]
[1770151502103,2.36859519,2297.4,2296.0,0.21801]
[1770151502302,2.36859519,2296.7,2295.5,2.3241275]
[1770151502506,0.21799,2296.3,2295.4,0.22323653]
[1770151502702,2.58661519,2296.0,2295.4,0.22323653]
[1770151502909,2.36859519,2296.2,2295.4,0.22323653]
[1770151503310,2.36859519,2295.8,2294.7,2.3241275]
[1770151503709,2.36859519,2295.8,2294.3,2.3241275]
[1770151503710,2.58663519,2295.8,2294.3,2.3241275]
[1770151504110,2.36859519,2295.8,2294.3,2.5423075]
[1770151504310,2.37267746,2295.8,2294.3,2.5463833]
[1770151506210,0.00408227,2295.8,2294.3,2.5463833]
[1770151507107,2.37267746,2295.8,2294.3,2.3282033]
[1770151508318,2.36859519,2295.6,2294.3,2.3282033]
[1770151508814,2.36859519,2295.6,2293.4,4.9941317]
[1770151508815,2.36859519,2294.9,2293.6,2.3241275]
[1770151509020,2.36859519,2294.6,2293.6,2.3241275]
[1770151509316,2.36859519,2294.6,2293.4,0.22196456]
[1770151509317,2.58674519,2294.6,2293.4,0.22196456]
[1770151509611,4.359,2294.9,2293.4,2.54609206]
[1770151509910,4.359,2294.9,2293.6,0.21824]
[1770151510119,4.359,2294.9,2293.7,2.5423575]
[1770151510312,2.36859519,2295.7,2294.3,2.3241275]
[1770151510712,4.36,2295.9,2294.3,2.5423075]
[1770151511212,4.36,2295.9,2294.9,2.3241275]
[1770151511415,4.36,2295.9,2294.1,2.38187679]
[1770151511416,4.36,2297.0,2295.5,2.3241275]
[1770151511612,0.22,2297.5,2295.8,2.3241275]
[1770151511814,0.22,2297.5,2296.2,2.3241275]
[1770151512316,0.22391133,2297.5,2296.2,2.32846339]
[1770151512512,2.59250652,2297.5,2296.2,2.32846339]
[1770151512716,2.36859519,2297.4,2296.2,0.00433589]
[1770151513417,2.36859519,2297.4,2296.2,2.32846339]
[1770151513619,2.58648519,2297.3,2296.2,2.32846339]
[1770151513818,2.36859519,2297.3,2296.2,2.32846339]
[1770151514120,0.22391133,2297.5,2296.2,2.32846339]
[1770151514320,0.22391133,2297.5,2296.4,2.3241275]
[1770151514522,0.22391133,2297.5,2296.4,2.5420975]
[1770151515623,2.59250652,2297.5,2296.2,0.00433589]
[1770151515818,2.36859519,2297.1,2296.2,0.00433589]
[1770151516022,2.36859519,2297.1,2296.2,0.00218925]
[1770151516620,2.58650519,2297.1,2295.2,2.3241275]
[1770151517524,2.58650519,2297.1,2295.2,2.32820381]
[1770151517825,2.36859519,2296.9,2295.2,2.54629381]
[1770151518726,2.556,2297.0,2295.4,2.3241275]
[1770151519924,4.92459519,2297.0,2295.4,2.3241275]
[1770151520226,2.36859519,2296.9,2295.4,2.3241275]
[1770151520420,2.33399431,2296.7,2295.2,2.37356356]
[1770151521022,2.55194431,2296.7,2295.2,2.37356356]
[1770151521230,2.33399431,2296.3,2295.2,0.00407631]
[1770151521520,2.33399431,2296.3,2294.2,3.50262787]
[1770151521521,2.33399431,2295.8,2293.8,2.36948725]
[1770151521721,2.33399431,2294.9,2293.5,2.36948725]
[1770151522120,2.33399431,2294.9,2293.2,0.21828]
[1770151522121,0.21813,2294.8,2293.1,2.36948725]
[1770151522317,4.359,2295.0,2293.5,2.36948725]
[1770151522521,6.69860684,2295.0,2293.5,2.37329532]
[1770151522720,2.33399431,2294.9,2293.5,2.37329532]
[1770151523122,4.36461253,2295.0,2293.5,2.37329532]
[1770151523518,4.36461253,2295.0,2293.5,2.59154532]
[1770151523921,4.36461253,2295.0,2293.7,2.36948725]
[1770151524125,6.69860684,2295.0,2293.7,2.36948725]
[1770151524322,4.36461253,2295.0,2293.7,2.36948725]
[1770151524529,5.10903431,2295.8,2294.0,2.36948725]
[1770151525123,5.10903431,2295.8,2294.0,2.58768725]
[1770151525326,2.33399431,2295.7,2294.0,2.58768725]
[1770151525523,2.55553383,2295.7,2294.0,2.58768725]
[1770151526125,2.55206431,2295.5,2294.0,2.36948725]
[1770151527130,0.21807,2295.5,2294.0,2.36948725]
[1770151527523,0.00348952,2295.7,2294.0,2.36948725]
[1770151528524,2.33399431,2295.5,2294.0,2.36948725]
[1770151528926,0.21807,2295.4,2294.0,2.36948725]
[1770151529128,2.33399431,2295.3,2294.0,2.36948725]
[1770151531730,4.36,2295.5,2294.0,2.36948725]
[1770151532026,4.36,2295.5,2294.3,2.36948725]
[1770151533135,2.33399431,2295.4,2294.0,2.36948725]
[1770151534126,2.33399431,2295.2,2294.0,2.36948725]
[1770151534331,0.21808,2295.3,2294.0,2.36948725]
[1770151534829,0.00348952,2295.7,2294.9,2.36948725]
[1770151535034,2.33399431,2296.3,2294.9,2.58760725]
[1770151535231,2.70541906,2296.3,2294.9,2.58760725]
[1770151535533,2.55198431,2296.3,2294.9,2.36948725]
[1770151536234,0.00431069,2296.3,2294.9,2.36948725]
[1770151536429,4.361,2297.3,2295.4,2.36948725]
[1770151536430,2.33399431,2297.1,2295.4,2.36948725]
[1770151536636,4.361,2297.3,2295.6,2.36948725]
[1770151536637,2.33399431,2296.8,2295.6,2.36948725]
[1770151537130,2.33399431,2296.8,2295.1,2.36948725]
[1770151537336,0.21795,2296.7,2295.1,2.36948725]
[1770151537636,2.5570877,2296.7,2295.1,2.37345087]
[1770151538538,2.55196431,2296.5,2295.1,2.37345087]
[1770151539236,0.00514339,2296.7,2295.1,0.00396362]
[1770151539237,2.33399431,2296.0,2295.1,0.00396362]
[1770151540136,0.21801,2296.1,2295.1,2.37345087]
[1770151540533,2.55200431,2296.1,2295.1,0.00396362]
[1770151540941,2.33399431,2296.1,2295.1,2.37345087]
[1770151541340,2.33399431,2296.1,2295.1,0.00396362]
[1770151542142,2.55200431,2296.1,2295.1,0.00396362]
[1770151544342,2.33399431,2295.9,2295.1,0.00396362]
[1770151546746,2.55202431,2295.9,2295.1,0.00396362]
[1770151547347,2.55202431,2295.9,2294.1,2.36948725]
[1770151547348,2.33399431,2295.2,2294.1,2.36948725]
[1770151547544,0.21817,2294.4,2294.1,2.36599773]
[1770151547740,0.21817,2294.4,2293.4,0.22196456]
[1770151547741,2.33399431,2294.3,2293.4,0.22196456]
[1770151547945,2.93192952,2294.3,2293.4,0.22196456]
[1770151548248,2.33399431,2294.2,2293.4,0.22196456]
[1770151548447,2.33399431,2294.2,2293.4,0.22742837]
[1770151549045,0.00336313,2294.3,2293.4,0.22742837]
[1770151549252,2.33399431,2294.9,2293.5,0.21825]
[1770151549652,2.33399431,2294.9,2293.5,2.36948725]
[1770151549848,2.33399431,2294.7,2293.4,0.22742837]
[1770151550046,0.37402496,2295.0,2293.4,0.22742837]
[1770151550047,2.33399431,2294.5,2293.4,0.22742837]
[1770151550247,2.33946979,2294.5,2293.4,0.22742837]
[1770151550853,2.55762979,2294.5,2293.4,0.22742837]
[1770151551047,2.32628845,2294.2,2293.4,0.22742837]
[1770151551452,2.54447845,2294.2,2293.4,0.22742837]
[1770151551653,2.54447845,2294.2,2293.4,0.22406524]
[1770151553349,2.32628845,2294.0,2292.7,2.48658181]
[1770151554450,2.32628845,2294.0,2292.7,2.49002536]
[1770151554651,2.54449845,2294.0,2292.7,2.49002536]
[1770151554847,6.913,2294.4,2292.7,0.00344355]
[1770151554848,2.61123376,2293.8,2292.7,0.00344355]
[1770151555046,6.913,2294.4,2292.7,0.00344355]
[1770151555047,2.39300376,2293.6,2292.7,0.00344355]
[1770151555251,2.61124376,2293.6,2292.7,0.00344355]
[1770151555446,2.39300376,2293.4,2292.7,0.00344355]
[1770151556248,2.39300376,2293.4,2291.5,2.40832353]
[1770151556852,0.21808,2295.3,2291.5,2.40832353]
[1770151556853,2.47922503,2296.9,2291.5,2.39409529]
[1770151557050,9.47681383,2301.8,2296.9,2.16032136]
[1770151557251,57.45791014,2301.0,2298.5,2.16032136]
[1770151557557,0.21732,2303.3,2299.2,0.19572817]
[1770151557754,57.23594558,2303.4,2302.9,2.35487786]
[1770151558051,50.7110579,2303.4,2301.5,0.19572817]